bitfinex/quotes_SOLUSD_20240620
["timestamp","ask_amount","ask_price","bid_price","bid_amount"]
[1718844008883,0.17,136.12,136.06,15.5325]
[1718844009157,7.3464,136.12,136.06,15.5325]
[1718844009361,8.026,136.13,136.06,15.5325]
[1718844009556,20.0,136.12,136.06,15.5325]
[1718844009760,22.5,136.13,136.06,15.5325]
[1718844010435,7.686,136.13,136.06,15.5325]
[1718844010663,20.0,136.14,136.06,15.5325]
[1718844010872,29.165,136.15,136.06,15.5325]
[1718844011548,21.82,136.15,136.06,15.5325]
[1718844012560,7.68287399,136.19,136.08,16.2617]
[1718844012769,20.0,136.18,136.1,16.2617]
[1718844013143,27.3432,136.18,136.1,16.2617]
[1718844013342,29.1613,136.22,136.12,16.2617]
[1718844013664,27.3416,136.21,136.12,16.2617]
[1718844014037,7.3421,136.2,136.12,16.2617]
[1718844014363,20.0,136.19,136.12,16.2617]
[1718844014953,20.0,136.2,136.12,16.2617]
[1718844016463,5.0,136.25,136.12,16.2617]
[1718844016662,26.82,136.25,136.12,16.2617]
[1718844016867,7.3424,136.2,136.12,16.2617]
[1718844017077,7.3436,136.18,136.12,16.2617]
[1718844017372,21.82,136.22,136.12,16.2617]
[1718844017563,7.3422,136.2,136.12,16.2617]
[1718844018368,7.3418,136.21,136.12,16.2617]
[1718844018567,20.0,136.2,136.12,16.2617]
[1718844018949,20.0,136.21,136.12,16.2617]
[1718844019344,27.3417,136.21,136.12,16.2617]
[1718844019560,7.5123,136.2,136.12,16.2617]
[1718844020673,7.5127,136.19,136.12,16.2617]
[1718844020967,7.5131,136.19,136.12,16.2617]
[1718844021169,29.6722,136.2,136.12,16.2617]
[1718844021391,0.17,136.19,136.12,16.2617]
[1718844021577,0.51,136.19,136.12,16.2617]
[1718844021747,29.5024,136.2,136.12,16.2617]
[1718844021748,0.17,136.2,136.12,16.2617]
[1718844022079,20.0,136.21,136.12,16.2617]
[1718844022543,27.3416,136.21,136.12,16.2617]
[1718844023046,0.17,136.2,136.12,16.2617]
[1718844023765,7.3435,136.18,136.12,16.2617]
[1718844024363,21.82,136.19,136.12,16.2617]
[1718844024961,29.1627,136.19,136.12,16.2617]
[1718844025452,7.3433,136.18,136.12,16.2617]
[1718844026580,0.17,136.18,136.12,16.2617]
[1718844026752,0.68,136.18,136.12,16.2617]
[1718844026953,7.344,136.17,136.12,16.2617]
[1718844027152,20.51,136.18,136.12,16.2617]
[1718844027355,21.99,136.19,136.12,16.2617]
[1718844027555,0.51,136.18,136.12,16.2617]
[1718844028091,0.17,136.2,136.12,16.2617]
[1718844028302,20.68,136.2,136.12,16.2617]
[1718844028477,20.34,136.2,136.12,16.2617]
[1718844028789,27.6823,136.2,136.12,16.2617]
[1718844028977,7.6823,136.2,136.12,16.2617]
[1718844029398,0.17,136.19,136.12,16.2617]
[1718844029565,7.5123,136.2,136.12,16.2617]
[1718844030584,0.34,136.2,136.12,16.2617]
[1718844030976,7.6822,136.2,136.12,16.2617]
[1718844031167,0.17,136.19,136.12,16.2617]
[1718844031581,0.34,136.2,136.12,16.2617]
[1718844031894,7.6822,136.2,136.12,16.2617]
[1718844032976,20.34,136.21,136.12,16.2617]
[1718844033288,0.34,136.21,136.12,16.2617]
[1718844033674,29.1613,136.22,136.12,16.2617]
[1718844033883,21.82,136.22,136.12,16.2617]
[1718844034092,7.3407,136.23,136.09,21.82]
[1718844034093,12.3399,136.25,136.13,21.9097]
[1718844034294,20.0,136.24,136.13,21.9097]
[1718844034500,7.3405,136.23,136.13,21.9097]
[1718844034675,20.0,136.22,136.13,21.9097]
[1718844035590,20.0,136.23,136.13,21.9097]
[1718844035968,0.34,136.24,136.13,21.9097]
[1718844035969,20.34,136.24,136.13,21.9097]
[1718844036168,7.6805,136.23,136.13,21.9097]
[1718844036368,20.0,136.22,136.13,21.9097]
[1718844037200,27.3413,136.22,136.13,21.9097]
[1718844037376,20.0,136.22,136.13,21.9097]
[1718844038097,27.3413,136.22,136.13,21.9097]
[1718844039398,20.0,136.22,136.13,21.9097]
[1718844044285,20.0,136.22,136.14,16.5925]
[1718844044891,27.3411,136.22,136.14,16.5925]
[1718844048089,20.0,136.22,136.14,16.5925]
[1718844048291,0.17,136.21,136.14,16.5925]
[1718844048491,7.343,136.19,136.14,16.5925]
[1718844049381,20.0,136.22,136.14,16.5925]
[1718844049598,27.3402,136.24,136.14,16.5925]
[1718844049805,27.34,136.24,136.14,16.5925]
[1718844050406,20.0,136.24,136.14,16.5925]
[1718844050889,27.34,136.24,136.14,16.5925]
[1718844051090,20.0,136.24,136.15,6.4735]
[1718844051793,20.0,136.24,136.16,15.0671]
[1718844051995,27.3401,136.24,136.16,15.0671]
[1718844052809,7.3406,136.23,136.16,15.0671]
[1718844053109,20.0,136.22,136.16,15.0671]
[1718844053894,0.17,136.22,136.16,15.0671]
[1718844054106,7.8506,136.23,136.16,15.0671]
[1718844054417,20.0,136.22,136.16,15.0671]
[1718844055302,0.17,136.22,136.16,15.0671]
[1718844055505,29.6713,136.22,136.16,15.0671]
[1718844055704,20.0,136.21,136.16,15.0671]
[1718844057691,21.82,136.22,136.16,15.0671]
[1718844057899,5.0,136.25,136.16,15.0671]
[1718844058103,7.3401,136.24,136.16,15.0671]
[1718844058283,27.3405,136.23,136.16,15.0671]
[1718844058687,7.3411,136.22,136.16,15.0671]
[1718844059408,27.3407,136.23,136.16,15.0671]
[1718844059588,20.0,136.23,136.16,15.0671]
[1718844059783,27.3405,136.23,136.16,15.0671]
[1718844060304,7.3411,136.22,136.16,15.0671]
[1718844060810,27.3407,136.23,136.16,15.0671]
[1718844061102,0.17,136.22,136.16,15.0671]
[1718844061485,33.24148824,136.23,136.16,15.0671]
[1718844061681,7.3411,136.22,136.16,15.0671]
[1718844062001,20.0,136.23,136.16,15.0671]
[1718844062199,27.5101,136.24,136.16,15.0671]
[1718844062619,20.0,136.24,136.16,15.0671]
[1718844062808,20.0,136.24,136.17,1.44920579]
[1718844063001,20.0,136.24,136.16,15.0671]
[1718844063190,27.3401,136.24,136.16,15.0671]
[1718844063391,0.17,136.23,136.16,15.0671]
[1718844063694,7.3417,136.21,136.16,15.0671]
[1718844064396,35.74245565,136.23,136.16,15.0671]
[1718844064597,0.17,136.18,136.12,15.2602]
[1718844064814,7.3445,136.16,136.12,15.2602]
[1718844065009,7.5137,136.18,136.12,15.2602]
[1718844065312,20.0,136.19,136.12,15.2602]
[1718844065619,0.17,136.21,136.12,15.2602]
[1718844065792,0.34,136.21,136.12,15.2602]
[1718844065990,20.0,136.22,136.12,15.2602]
[1718844066202,0.17,136.21,136.13,6.4546]
[1718844066391,8.0219,136.21,136.13,6.4546]
[1718844066999,0.68,136.21,136.13,6.4546]
[1718844069421,20.0,136.22,136.13,6.4546]
[1718844069710,20.0,136.22,136.14,15.7113]
[1718844069924,20.0,136.23,136.14,15.7113]
[1718844071439,27.5101,136.24,136.14,15.7113]
[1718844071931,20.17,136.24,136.15,6.2775]
[1718844072096,0.17,136.22,136.15,6.2775]
[1718844072295,27.6813,136.22,136.15,6.2775]
[1718844072717,20.34,136.22,136.15,6.2775]
[1718844072906,20.0,136.22,136.15,6.2775]
[1718844073106,20.0,136.24,136.15,6.2775]
[1718844074030,20.0,136.24,136.16,15.9977]
[1718844074402,5.0,136.25,136.16,15.9977]
[1718844075023,25.0,136.25,136.16,15.9977]
[1718844075516,5.0,136.25,136.19,15.0047]
[1718844076105,21.82,136.35,136.23,15.0047]
[1718844076304,7.3348,136.34,136.23,15.0047]
[1718844076712,7.3348,136.34,136.24,6.2412]
[1718844076911,7.3351,136.33,136.24,6.2412]
[1718844077426,7.335,136.34,136.25,15.1765]
[1718844077615,18.3338,136.36,136.25,15.1765]
[1718844077814,7.3359,136.32,136.25,15.1765]
[1718844078625,21.82,136.37,136.25,15.1765]
[1718844078805,7.3354,136.33,136.26,1.10356075]
[1718844079011,7.3363,136.31,136.25,15.1765]
[1718844079232,7.3368,136.3,136.25,15.1765]
[1718844079416,40.1575,136.34,136.25,15.1765]
[1718844079417,7.3358,136.32,136.25,15.1765]
[1718844079621,18.3375,136.34,136.25,15.1765]
[1718844079823,7.3364,136.31,136.25,15.1765]
[1718844080031,20.0,136.3,136.25,15.1765]
[1718844081109,20.0,136.31,136.25,15.1765]
[1718844081435,27.3362,136.31,136.25,15.1765]
[1718844082013,27.3366,136.31,136.25,15.1765]
[1718844082330,20.0,136.31,136.25,15.1765]
[1718844082505,7.3358,136.32,136.25,15.1765]
[1718844082709,20.0,136.31,136.25,15.1765]
[1718844082922,27.3362,136.31,136.25,15.1765]
[1718844083739,7.3367,136.3,136.25,15.1765]
[1718844083912,27.3363,136.31,136.25,15.1765]
[1718844084623,21.82,136.36,136.25,15.1765]
[1718844084830,7.3353,136.33,136.25,15.1765]
[1718844085028,27.3356,136.32,136.25,15.1765]
[1718844085251,7.3356,136.32,136.25,15.1765]
[1718844085610,7.3362,136.31,136.25,15.1765]
[1718844085812,20.0,136.3,136.25,15.1765]
[1718844086227,7.3374,136.29,136.25,15.1765]
[1718844086535,27.3369,136.3,136.25,15.1765]
[1718844087326,7.3372,136.29,136.25,15.1765]
[1718844087637,27.3369,136.3,136.25,15.1765]
[1718844088223,27.3368,136.3,136.25,15.1765]
[1718844088421,20.0,136.3,136.25,15.1765]
[1718844090237,20.0,136.31,136.25,15.1765]
[1718844090618,27.3362,136.31,136.25,15.1765]
[1718844090811,7.3371,136.3,136.25,15.1765]
[1718844091623,0.17,136.3,136.25,15.1765]
[1718844091932,7.3394,136.25,136.24,6.2412]
[1718844092138,7.3389,136.26,136.24,6.2412]
[1718844092312,7.3394,136.25,136.24,6.2412]
[1718844092517,18.3459,136.28,136.22,15.9658]
[1718844092839,27.3384,136.27,136.22,15.9658]
[1718844093034,21.82,136.3,136.22,15.9658]
[1718844093217,18.3366,136.34,136.22,15.9658]
[1718844093420,20.0,136.33,136.23,6.3239]
[1718844093827,7.3382,136.28,136.23,6.3239]
[1718844094032,7.3384,136.27,136.23,6.3239]
[1718844094238,7.338,136.28,136.23,6.3239]
[1718844095725,21.82,136.32,136.23,6.3239]
[1718844095924,20.0,136.31,136.23,6.3239]
[1718844096534,27.3363,136.31,136.23,6.3239]
[1718844097041,27.3363,136.31,136.24,15.0833]
[1718844099951,21.82,136.35,136.24,15.0833]
[1718844100247,20.0,136.34,136.24,15.0833]
[1718844100429,27.3349,136.34,136.24,15.0833]
[1718844100624,7.3351,136.33,136.24,15.0833]
[1718844100830,20.0,136.32,136.24,15.0833]
[1718844101231,20.0,136.32,136.25,21.6945]
[1718844101435,18.3336,136.37,136.25,21.6945]
[1718844101436,20.0,136.36,136.25,21.6945]
[1718844101636,7.3343,136.35,136.25,21.6945]
[1718844101838,7.3352,136.33,136.25,21.6945]
[1718844102037,20.0,136.34,136.25,21.6945]
[1718844102239,33.3334,136.4,136.27,16.0431]
[1718844102545,18.3325,136.37,136.27,16.0431]
[1718844103247,7.3349,136.34,136.27,16.0431]
[1718844103947,0.17,136.35,136.27,16.0431]
[1718844104250,7.3382,136.28,136.21,21.7782]
[1718844104953,21.82,136.31,136.21,21.7782]
[1718844105137,20.0,136.3,136.21,21.7782]
[1718844105727,27.3368,136.3,136.21,21.7782]
[1718844106540,7.3373,136.29,136.21,21.7782]
[1718844106835,7.3374,136.29,136.21,21.7782]
[1718844107838,7.3378,136.28,136.21,21.7782]
[1718844108253,7.3384,136.27,136.21,21.7782]
[1718844109739,29.1579,136.28,136.21,21.7782]
[1718844109947,20.0,136.27,136.21,21.7782]
[1718844111560,20.0,136.29,136.21,21.7782]
[1718844112357,20.0,136.3,136.21,21.7782]
[1718844112666,27.3369,136.3,136.21,21.7782]
[1718844112967,7.3378,136.28,136.21,21.7782]
[1718844113347,7.3375,136.29,136.21,21.7782]
[1718844113662,20.0,136.28,136.21,21.7782]
[1718844113866,7.3387,136.27,136.21,21.7782]
[1718844114072,20.0,136.26,136.21,21.7782]
[1718844114547,7.3398,136.25,136.21,21.7782]
[1718844114867,27.339,136.26,136.21,21.7782]
[1718844115066,20.0,136.26,136.21,21.7782]
[1718844115240,27.3389,136.26,136.21,21.7782]
[1718844115964,20.0,136.26,136.21,21.7782]
[1718844117770,20.0,136.27,136.21,21.7782]
[1718844117969,27.3383,136.27,136.21,21.7782]
[1718844118270,7.3389,136.26,136.21,21.7782]
[1718844118654,7.3397,136.25,136.21,21.7782]
[1718844119567,7.34,136.24,136.21,21.7782]
[1718844119756,7.3402,136.24,136.21,15.6131]
[1718844120076,7.3406,136.23,136.21,15.6131]
[1718844120367,7.3401,136.24,136.21,15.6131]
[1718844120542,7.3389,136.26,136.21,15.6131]
[1718844120743,20.0,136.25,136.21,15.6131]
[1718844121743,7.3392,136.26,136.21,15.6131]
[1718844121948,20.0,136.25,136.21,15.6131]
[1718844122368,7.3392,136.26,136.21,15.6131]
[1718844122667,20.0,136.27,136.21,15.6131]
[1718844123162,0.34,136.26,136.21,15.6131]
[1718844123361,7.3391,136.26,136.21,15.6131]
[1718844123560,27.3396,136.25,136.21,15.6131]
[1718844124755,20.0,136.25,136.21,15.6131]
[1718844125557,27.3395,136.25,136.21,15.6131]
[1718844128467,20.0,136.25,136.21,15.6131]
[1718844129867,20.0,136.26,136.21,15.6131]
[1718844130353,21.82,136.32,136.21,15.6131]
[1718844130556,27.3363,136.31,136.22,6.2586]
[1718844131476,20.0,136.31,136.22,6.2586]
[1718844131669,20.0,136.32,136.22,6.2586]
[1718844131871,7.3367,136.3,136.22,6.2586]
[1718844132173,20.0,136.29,136.22,6.2586]
[1718844132471,7.3378,136.29,136.23,15.0684]
[1718844132973,7.338,136.28,136.23,15.0684]
[1718844133755,7.3384,136.27,136.23,15.0684]
[1718844133961,20.0,136.26,136.23,15.0684]
[1718844134170,20.0,136.26,136.2,15.459]
[1718844134171,7.3399,136.24,136.2,15.459]
[1718844134369,7.3394,136.25,136.2,15.459]
[1718844134567,20.0,136.26,136.2,15.459]
[1718844134872,0.17,136.27,136.2,15.459]
[1718844135064,0.34,136.27,136.2,15.459]
[1718844135264,0.34,136.26,136.2,15.459]
[1718844135466,7.6791,136.26,136.2,15.459]
[1718844135661,20.0,136.25,136.2,15.459]
[1718844135955,21.82,136.29,136.2,15.459]
[1718844136260,7.3384,136.27,136.2,15.459]
[1718844136455,20.0,136.26,136.2,15.459]
[1718844137167,27.339,136.26,136.2,15.459]
[1718844137369,7.3385,136.27,136.2,15.459]
[1718844137883,7.3389,136.26,136.2,15.459]
[1718844138684,7.3385,136.27,136.2,15.459]
[1718844138874,18.3389,136.33,136.2,15.459]
[1718844139179,41.82,136.31,136.2,15.459]
[1718844139563,7.3378,136.28,136.2,15.459]
[1718844141283,7.3375,136.29,136.2,15.459]
[1718844141584,20.0,136.28,136.2,15.459]
[1718844142162,20.0,136.3,136.2,15.459]
[1718844142781,27.3368,136.3,136.2,15.459]
[1718844143658,20.0,136.3,136.21,22.1474]
[1718844143864,49.1554,136.33,136.23,6.6123]
[1718844144262,49.1554,136.33,136.24,15.3651]
[1718844144780,7.3362,136.31,136.24,15.3651]
[1718844144983,7.3358,136.32,136.24,15.3651]
[1718844145187,20.0,136.31,136.24,15.3651]
[1718844145883,7.3381,136.28,136.24,15.3651]
[1718844146064,20.0,136.31,136.24,15.3651]
[1718844146260,20.17,136.32,136.24,15.3651]
[1718844146465,20.0,136.32,136.24,15.3651]
[1718844146659,27.336,136.32,136.24,15.3651]
[1718844147067,7.3368,136.3,136.24,15.3651]
[1718844148070,7.3364,136.31,136.24,15.3651]
[1718844148265,7.3367,136.3,136.24,15.3651]
[1718844148776,20.0,136.29,136.24,15.3651]
[1718844148978,7.3369,136.3,136.24,15.3651]
[1718844149184,20.0,136.29,136.24,15.3651]
[1718844151794,27.3373,136.29,136.24,15.3651]
[1718844153014,0.17,136.28,136.24,15.3651]
[1718844153183,0.51,136.28,136.24,15.3651]
[1718844153497,7.3392,136.26,136.24,15.3651]
[1718844154004,7.3385,136.27,136.24,15.3651]
[1718844154184,27.339,136.26,136.15,22.3491]
[1718844154379,0.51,136.28,136.15,22.3491]
[1718844154380,7.3399,136.25,136.15,22.3491]
[1718844154691,20.0,136.24,136.15,22.3491]
[1718844155288,27.34,136.24,136.15,22.3491]
[1718844155670,20.0,136.24,136.17,16.0103]
[1718844155878,20.0,136.25,136.17,16.0103]
[1718844156195,20.0,136.26,136.17,16.0103]
[1718844156986,20.0,136.26,136.18,0.17]
[1718844157180,20.0,136.27,136.19,22.5034]
[1718844157595,20.0,136.28,136.19,22.5034]
[1718844157979,27.338,136.28,136.19,22.5034]
[1718844158177,7.3383,136.27,136.19,22.5034]
[1718844158377,20.0,136.26,136.19,22.5034]
[1718844159286,20.0,136.27,136.19,22.5034]
[1718844161697,21.82,136.32,136.22,15.9743]
[1718844161905,7.3367,136.3,136.22,15.9743]
[1718844162282,20.0,136.29,136.22,15.9743]
[1718844162501,27.3373,136.29,136.22,15.9743]
[1718844163776,7.3378,136.28,136.22,15.9743]
[1718844165401,27.3374,136.29,136.22,15.9743]
[1718844166203,20.0,136.29,136.22,15.9743]
[1718844166384,37.949,136.34,136.22,15.9743]
[1718844166578,27.3355,136.33,136.23,6.2746]
[1718844166893,15.1895,136.37,136.26,15.4692]
[1718844166894,7.3344,136.35,136.26,15.4692]
[1718844167102,8.18816599,136.38,136.26,15.4692]
[1718844167313,33.5191,136.4,136.27,6.2746]
[1718844167314,15.1895,136.4,136.27,6.2746]
[1718844167476,15.1895,136.4,136.27,21.7438]
[1718844167477,7.3331,136.37,136.27,21.7438]
[1718844167676,7.3335,136.36,136.27,21.7438]
[1718844169580,7.3336,136.36,136.27,21.7438]
[1718844169914,7.3332,136.37,136.27,21.7438]
[1718844170098,27.3336,136.36,136.27,21.7438]
[1718844170806,27.3335,136.36,136.27,21.7438]
[1718844172289,7.3342,136.35,136.27,21.7438]
[1718844172707,20.0,136.36,136.27,21.7438]
[1718844173027,7.3346,136.34,136.27,21.7438]
[1718844173315,27.3353,136.33,136.27,21.7438]
[1718844173623,27.3351,136.33,136.27,21.7438]
[1718844173906,20.0,136.33,136.27,21.7438]
[1718844174111,20.0,136.34,136.27,21.7438]
[1718844175304,27.334,136.35,136.27,21.7438]
[1718844175604,20.0,136.35,136.27,21.7438]
[1718844175915,27.3338,136.36,136.27,21.7438]
[1718844178807,7.334,136.35,136.27,21.7438]
[1718844179106,20.0,136.34,136.27,21.7438]
[1718844179607,27.334,136.36,136.27,21.7438]
[1718844179788,7.3341,136.35,136.27,21.7438]
[1718844179987,20.0,136.36,136.27,21.7438]
[1718844179988,27.3347,136.34,136.27,21.7438]
[1718844180207,7.3354,136.33,136.27,21.7438]
[1718844180388,0.17,136.35,136.27,21.7438]
[1718844180589,7.3362,136.31,136.27,21.7438]
[1718844181002,0.17,136.33,136.27,15.4692]
[1718844181306,7.3377,136.29,136.24,6.21]
[1718844181542,18.342,136.3,136.24,6.21]
[1718844181696,20.0,136.29,136.24,6.21]
[1718844182002,21.82,136.28,136.23,15.4809]
[1718844182305,20.0,136.27,136.23,15.4809]
[1718844183487,41.82,136.28,136.23,15.4809]
[1718844183692,0.17,136.27,136.23,15.4809]
[1718844183916,20.0,136.28,136.23,15.4809]
[1718844184090,27.3379,136.28,136.23,15.4809]
[1718844184400,20.0,136.28,136.23,15.4809]
[1718844185003,20.68,136.29,136.23,15.4809]
[1718844185202,7.3381,136.28,136.23,15.4809]
[1718844185390,20.0,136.27,136.23,15.4809]
[1718844185706,0.17,136.26,136.19,15.7143]
[1718844185910,7.341,136.22,136.19,15.7143]
[1718844186117,0.68,136.26,136.19,15.7143]
[1718844186321,21.82,136.25,136.19,15.7143]
[1718844186525,20.17,136.24,136.19,15.7143]
[1718844186817,27.51,136.24,136.19,15.7143]
[1718844187208,7.3405,136.23,136.19,15.7143]
[1718844187419,20.0,136.22,136.19,15.7143]
[1718844188203,27.3411,136.22,136.19,15.7143]
[1718844188603,20.0,136.22,136.19,15.7143]
[1718844188997,20.17,136.24,136.19,15.7143]
[1718844189696,7.3416,136.21,136.19,15.7143]
[1718844190415,7.3424,136.2,136.17,6.1925]
[1718844190603,21.99,136.22,136.16,16.0182]
[1718844190798,20.17,136.21,136.16,16.0182]
[1718844191002,20.17,136.21,136.12,16.0182]
[1718844191003,0.17,136.18,136.12,16.0182]
[1718844191205,7.3446,136.16,136.12,16.0182]
[1718844191423,7.3446,136.16,136.11,6.2319]
[1718844191424,0.17,136.14,136.09,21.82]
[1718844191719,7.5155,136.14,136.09,21.82]
[1718844191923,0.17,136.14,136.09,21.82]
[1718844192292,7.5154,136.14,136.09,21.82]
[1718844192497,7.3459,136.13,136.09,21.82]
[1718844193315,0.17,136.14,136.09,21.82]
[1718844193619,7.346,136.13,136.08,16.1816]
[1718844194321,7.3465,136.12,136.04,15.4137]
[1718844194504,27.6865,136.12,136.04,15.4137]
[1718844196017,7.517,136.11,136.04,15.4137]
[1718844196428,0.17,136.09,136.03,6.332]
[1718844196605,0.51,136.09,136.0,22.4299]
[1718844196806,7.3492,136.07,136.0,22.4299]
[1718844197006,27.3497,136.06,136.0,22.4299]
[1718844197208,20.0,136.06,136.0,22.4299]
[1718844197402,27.3497,136.06,136.0,22.4299]
[1718844197608,20.0,136.06,136.0,22.4299]
[1718844198217,27.3501,136.06,136.0,22.4299]
[1718844198412,7.3509,136.04,136.0,22.4299]
[1718844198613,20.0,136.06,136.0,22.4299]
[1718844198813,7.3511,136.04,135.97,6.5651]
[1718844199015,20.0,136.03,135.97,6.5651]
[1718844199220,7.3508,136.04,135.97,6.5651]
[1718844199419,20.0,136.03,135.97,6.5651]
[1718844199812,27.3514,136.03,135.97,6.5651]
[1718844200008,0.34,136.02,135.92,22.2595]
[1718844200213,0.51,136.02,135.92,22.2595]
[1718844200408,7.3524,136.01,135.92,22.2595]
[1718844201007,0.51,136.02,135.92,22.2595]
[1718844201008,0.34,136.02,135.92,22.2595]
[1718844201214,20.0,136.03,135.92,22.2595]
[1718844201431,0.68,136.02,135.92,22.2595]
[1718844201623,22.5,136.02,135.92,22.2595]
[1718844201810,20.0,136.01,135.92,22.2595]
[1718844202216,7.5213,136.03,135.92,22.2595]
[1718844202520,20.34,136.02,135.92,22.2595]
[1718844202938,20.0,136.03,135.92,22.2595]
[1718844203231,27.3508,136.04,135.92,22.2595]
[1718844204137,20.0,136.04,135.92,22.2595]
[1718844204318,0.34,136.03,135.92,22.2595]
[1718844204928,0.17,136.03,135.92,22.2595]
[1718844205123,27.3509,136.04,135.92,22.2595]
[1718844205524,27.3509,136.04,135.93,0.17]
[1718844205832,20.0,136.04,135.93,0.68]
[1718844208233,20.0,136.04,135.95,0.17]
[1718844208419,20.0,136.05,135.95,0.68]
[1718844209436,27.3502,136.05,135.95,0.68]
[1718844209620,7.3508,136.04,135.94,22.4993]
[1718844209822,7.3508,136.04,135.95,0.34]
[1718844210240,7.3513,136.03,135.95,0.34]
[1718844210424,7.3515,136.03,135.94,22.4993]
[1718844210738,7.5209,136.04,135.94,22.4993]
[1718844210930,27.5214,136.03,135.94,22.4993]
[1718844211338,20.0,136.03,135.94,22.4993]
[1718844211726,20.0,136.03,135.95,0.17]
[1718844211936,7.3502,136.05,135.95,0.34]
[1718844212234,20.0,136.04,135.95,0.34]
[1718844212438,27.351,136.04,135.95,0.34]
[1718844212620,7.5214,136.03,135.94,22.4993]
[1718844213427,20.17,136.02,135.94,22.4993]
[1718844213628,7.3531,136.0,135.94,22.4993]
[1718844213842,7.353,136.0,135.94,22.4993]
[1718844215224,7.3513,136.03,135.94,22.4993]
[1718844215427,27.6922,136.02,135.94,22.4993]
[1718844215639,20.0,136.02,135.94,22.4993]
[1718844215824,20.0,136.03,135.94,22.4993]
[1718844216431,27.3513,136.03,135.94,22.4993]
[1718844219043,7.6918,136.02,135.94,22.4993]
[1718844219242,20.0,136.01,135.94,22.4993]
[1718844219630,27.3525,136.01,135.94,22.4993]
[1718844219838,20.0,136.01,135.94,22.4993]
[1718844220749,27.6919,136.02,135.94,22.4993]
[1718844223445,20.0,136.02,135.94,22.4993]
[1718844223749,20.0,136.03,135.94,22.4993]
[1718844223928,18.3729,136.07,135.94,22.4993]
[1718844223929,7.3504,136.05,135.94,22.4993]
[1718844224129,20.0,136.04,135.94,22.4993]
[1718844224328,20.0,136.04,135.95,0.68]
[1718844224525,20.0,136.04,135.97,0.17]
[1718844224846,7.3498,136.06,135.98,6.4226]
[1718844225048,20.0,136.05,135.98,6.4226]
[1718844226049,27.3502,136.05,135.98,6.4226]
[1718844226345,7.3508,136.04,135.98,6.4226]
[1718844227347,27.3504,136.05,135.98,6.4226]
[1718844227523,20.0,136.05,135.98,6.4226]
[1718844228142,27.3503,136.05,135.98,6.4226]
[1718844229529,20.0,136.05,135.98,6.4226]
[1718844229725,0.17,136.04,135.98,6.4226]
[1718844229935,7.3522,136.02,135.98,6.4226]
[1718844230641,7.3527,136.01,135.98,6.4226]
[1718844230958,20.0,136.0,135.98,6.4226]
[1718844231331,20.0,136.01,135.98,6.4226]
[1718844233851,20.0,136.02,135.98,6.4226]
[1718844234073,7.6911,136.04,135.98,6.4226]
[1718844234237,20.17,136.03,135.98,6.4226]
[1718844234553,20.0,136.02,135.98,6.4226]
[1718844234769,27.5204,136.05,135.98,6.4226]